fUST/lending_fUST_20250806
["ID","MTS","AMOUNT","RATE_DAILY","PERIOD"]
[377604134,1754449838351,-205818.03181495,0.00026474,2]
[377604135,1754449838380,-349.01393245,0.00026474,2]
[377604136,1754449838395,-2373.34004664,0.00026474,2]
[377604147,1754449913850,150.0,0.00024374,2]
[377604152,1754450044542,162.96093,0.00013699,2]
[377604154,1754450210818,400.0,0.0003,120]
[377604155,1754450215205,150.0,0.00024374,2]
[377604156,1754450244201,455.0,0.00030137,120]
[377604157,1754450435175,5000.0,0.0002511,9]
[377604170,1754451001107,500.0,0.00030136,120]
[377604220,1754451032596,-202.91406581,0.00024994,2]
[377604223,1754451032606,-150.0,0.00025098,2]
[377604226,1754451032615,-300.0,0.00025584,2]
[377604227,1754451032628,-496.90172643,0.00025585,2]
[377604230,1754451032640,-24403.09827357,0.00025585,2]
[377604232,1754451032649,-7713.09314251,0.00026374,2]
[377604234,1754451032658,-2542.75849787,0.00026548,2]
[377604235,1754451032668,-1000.0,0.00026646,5]
[377604238,1754451032678,-5686.70288184,0.00027269,2]
[377604240,1754451032690,-7708.3755688,0.00027269,2]
[377604280,1754451046073,162.96093,0.00013699,2]
[377604284,1754451137016,160.0,0.000245,3]
[377604285,1754451185243,160.0,0.0002,3]
[377604300,1754451939106,362.5934876,0.00024242,2]
[377604301,1754451951690,3545.57730594,0.00024551,2]
[377604303,1754451967332,1246.92269406,0.00024551,2]
[377604330,1754452211601,162.96093,0.00013699,2]
[377604332,1754452221802,3753.07730594,0.0002511,9]
[377604357,1754452232652,-153.48908639,0.00024965,2]
[377604359,1754452232662,-153.48908638,0.00024966,2]
[377604361,1754452232671,-153.48908638,0.00024968,2]
[377604363,1754452232682,-153.48908638,0.00024969,2]
[377604365,1754452232692,-173.0,0.00025,7]
[377604367,1754452232701,-300.0,0.00025064,2]
[377604369,1754452232711,-500.0,0.00025065,2]
[377604371,1754452232720,-500.0,0.00025065,2]
[377604373,1754452232730,-307.34189135,0.00025065,2]
[377604375,1754452232740,-500.0,0.00025065,2]
[377604377,1754452232749,-500.0,0.00025065,2]
[377604380,1754452232758,-500.0,0.00025065,2]
[377604382,1754452232768,-263.35642953,0.00025065,2]
[377604386,1754452232794,-236.64357047,0.00025065,2]
[377604389,1754452232803,-222.55612793,0.00025065,2]
[377604395,1754452232827,-277.44387207,0.00025065,2]
[377604398,1754452232837,-500.0,0.00025065,2]
[377604402,1754452232846,-356.35792546,0.00025065,2]
[377604450,1754452238753,-254.66911156,0.00025068,2]
[377608412,1754452400560,14180.52889349,0.00024261,2]
[377608413,1754452400583,10719.47110651,0.00024261,2]
[377608414,1754452416362,5000.0,0.0002511,9]
[377608415,1754452432306,5000.0,0.0002511,9]
[377608416,1754452448734,5000.0,0.0002511,9]
[377608417,1754452465795,5000.0,0.0002511,9]
[377608419,1754452798045,200.0,0.00024551,2]
[377608420,1754452819436,217.16,0.00024551,2]
[377608421,1754452876929,201.9411877,0.00024085,2]
[377608422,1754452890717,193.03,0.00024551,2]
[377608424,1754452960742,171.59,0.00024551,2]
[377608425,1754453031418,152.52,0.00024551,2]
[377608431,1754453230250,1982.0,0.000301,120]
[377608443,1754453393897,13144.28770579,0.00024084,2]
[377608444,1754453393919,11755.71229421,0.00024084,2]
[377608445,1754453407317,2407.27727042,0.0002511,9]
[377609103,1754453438009,-174.0,0.00025,7]
[377609105,1754453438018,-153.0,0.00025062,2]
[377609107,1754453438027,-300.0,0.00025062,2]
[377609109,1754453438037,-300.0,0.00025062,2]
[377609111,1754453438047,-300.0,0.00025062,2]
[377609113,1754453438056,-300.0,0.00025062,2]
[377609115,1754453438065,-300.0,0.00025062,2]
[377609117,1754453438074,-1200.0,0.00025062,2]
[377609119,1754453438084,-31742.02293036,0.00025063,2]
[377609121,1754453438093,-500.0,0.00025063,2]
[377609123,1754453438102,-500.0,0.00025063,2]
[377609125,1754453438113,-500.0,0.00025063,2]
[377609127,1754453438127,-500.0,0.00025063,2]
[377609129,1754453438136,-380.17870238,0.00025063,2]
[377609131,1754453438146,-500.0,0.00025063,2]
[377609133,1754453438155,-501.7022097,0.00025063,2]
[377609135,1754453438164,-160.12332904,0.00025063,2]
[377609137,1754453438173,-500.0,0.00025063,2]
[377609139,1754453438182,-500.0,0.00025063,2]
[377609141,1754453438191,-500.0,0.00025063,2]
[377609143,1754453438201,-500.0,0.00025063,2]
[377609145,1754453438210,-207.19750861,0.00025063,2]
[377609147,1754453438219,-500.0,0.00025063,2]
[377609149,1754453438228,-495.74762944,0.00025063,2]
[377609151,1754453438237,-500.0,0.00025063,2]
[377609153,1754453438246,-500.0,0.00025063,2]
[377609155,1754453438259,-409.68522204,0.00025063,2]
[377609157,1754453438269,-500.0,0.00025063,2]
[377609159,1754453438278,-500.0,0.00025063,2]
[377609161,1754453438287,-509.05573108,0.00025063,2]
[377609163,1754453438297,-500.0,0.00025063,2]
[377609165,1754453438307,-500.0,0.00025063,2]
[377609167,1754453438316,-500.0,0.00025063,2]
[377609169,1754453438329,-500.0,0.00025063,2]
[377609171,1754453438339,-500.0,0.00025063,2]
[377609173,1754453438348,-152.0354736,0.00025068,2]
[377609175,1754453438358,-150.0,0.00025142,2]
[377609177,1754453438367,-704.85201586,0.00025146,2]
[377609179,1754453438377,-2816.58865538,0.00025146,2]
[377609181,1754453438387,-1021.64918929,0.00025772,2]
[377609183,1754453438397,-174.0,0.0002589,7]
[377609185,1754453438406,-430.7234783,0.00025909,2]
[377609187,1754453438416,-430.7234783,0.00025909,2]
[377609189,1754453438426,-430.7234783,0.00025909,2]
[377609191,1754453438435,-439.9668416,0.00025909,2]
[377609193,1754453438445,-430.7234783,0.00025909,2]
[377609195,1754453438454,-861.4469566,0.00025909,2]
[377609197,1754453438463,-354.2,0.000264,2]
[377609199,1754453438473,-160.0,0.00026443,3]
[377609201,1754453438482,-1469.05079541,0.00026788,2]
[377609203,1754453438492,-5000.0,0.00026788,2]
[377609205,1754453438501,-2250.69975632,0.000269,2]
[377609207,1754453438511,-160.0,0.0002696,2]
[377609209,1754453438520,-20000.0,0.00027,2]
[377609211,1754453438529,-298.87287775,0.00027017,2]
[377609213,1754453438538,-550.4,0.00027042,3]
[377609215,1754453438548,-1617.22731336,0.00027042,2]
[377609217,1754453438557,-971.0,0.00027045,2]
[377609219,1754453438568,-2148.0,0.00027045,2]
[377609221,1754453438577,-636.0,0.00027045,2]
[377609223,1754453438587,-408.0,0.00027045,2]
[377609225,1754453438596,-412.907,0.00027045,2]
[377609227,1754453438606,-160.0,0.00027051,4]
[377609229,1754453438616,-161459.61420596,0.00027052,2]
[377609231,1754453438626,-500.0,0.00027073,2]
[377609233,1754453438635,-300.50494745,0.00027099,2]
[377609235,1754453438645,-420.0,0.00027149,2]
[377609237,1754453438654,-150.0,0.00027152,2]
[377609239,1754453438663,-150.165,0.00027152,2]
[377609241,1754453438673,-150.24,0.00027152,2]
[377609242,1754453438682,-5361.74277626,0.0002716,2]
[377609243,1754453438691,-913.36363139,0.0002716,2]
[377609244,1754453438701,-2603.37419148,0.00027198,2]
[377609245,1754453438710,-1212.92048502,0.0002725,2]
[377609246,1754453438719,-160.93899496,0.00027259,2]
[377609247,1754453438728,-119022.85364553,0.0002726,2]
[377609248,1754453438737,-6158.869999,0.0002726,2]
[377609249,1754453438746,-151.0,0.0002726,7]
[377609250,1754453438756,-151.0,0.0002726,7]
[377609251,1754453438766,-479.776248,0.0002726,7]
[377609252,1754453438775,-479.776248,0.0002726,7]
[377609253,1754453438784,-307.592208,0.0002726,7]
[377609254,1754453438793,-151.0,0.0002726,7]
[377609256,1754453438802,-307.592208,0.0002726,7]
[377609258,1754453438812,-1619.121779,0.0002726,7]
[377609259,1754453438823,-151.0,0.0002726,7]
[377609261,1754453438832,-295.124499,0.0002726,7]
[377609263,1754453438842,-551.324436,0.0002726,7]
[377609265,1754453438851,-551.324436,0.0002726,7]
[377609267,1754453438864,-151.0,0.0002726,7]
[377609269,1754453438875,-151.0,0.0002726,7]
[377609271,1754453438885,-151.0,0.0002726,7]
[377609273,1754453438895,-151.0,0.0002726,7]
[377609275,1754453438904,-151.0,0.0002726,7]
[377609277,1754453438913,-151.0,0.0002726,7]
[377609279,1754453438923,-151.0,0.0002726,7]
[377609281,1754453438932,-151.0,0.0002726,7]
[377609283,1754453438942,-151.0,0.0002726,7]
[377609285,1754453438951,-151.0,0.0002726,7]
[377609287,1754453438960,-167.23845,0.0002726,7]
[377609289,1754453438969,-151.0,0.0002726,7]
[377609291,1754453438978,-151.0,0.0002726,7]
[377609293,1754453438987,-152.046712,0.0002726,7]
[377609295,1754453438996,-151.0,0.0002726,7]
[377609297,1754453439005,-500.0,0.00027273,2]
[377609299,1754453439015,-500.0,0.00027273,2]
[377609301,1754453439024,-500.0,0.00027273,2]
[377609303,1754453439034,-502.17984503,0.00027273,2]
[377609305,1754453439043,-502.4527206,0.00027273,2]
[377609307,1754453439053,-500.0,0.00027273,2]
[377609309,1754453439062,-500.0,0.00027273,2]
[377609311,1754453439071,-500.0,0.00027273,2]
[377609313,1754453439081,-505.54184549,0.00027273,2]
[377609315,1754453439093,-501.13383579,0.00027273,2]
[377609317,1754453439102,-500.0,0.00027273,2]
[377609319,1754453439113,-501.70565741,0.00027273,2]
[377609321,1754453439123,-500.0,0.00027273,2]
[377609323,1754453439132,-500.0,0.00027273,2]
[377609325,1754453439142,-500.0,0.00027273,2]
[377609327,1754453439151,-507.39031374,0.00027273,2]
[377609329,1754453439160,-502.2046253,0.00027273,2]
[377609331,1754453439170,-502.29930668,0.00027273,2]
[377609333,1754453439184,-500.0,0.00027273,2]
[377609335,1754453439193,-151.0,0.000273,7]
[377609337,1754453439203,-151.0,0.000273,7]
[377609339,1754453439212,-151.0,0.000273,7]
[377609341,1754453439221,-221.4580449,0.00027331,2]
[377609343,1754453439231,-404.30682834,0.0002739,2]
[377609345,1754453439240,-502.06904033,0.00027397,30]
[377609347,1754453439252,-511.8683633,0.00027397,30]
[377609349,1754453439262,-151.0,0.00027397,7]
[377609351,1754453439272,-151.0,0.00027397,7]
[377609353,1754453439281,-500.0,0.00027397,30]
[377609355,1754453439291,-500.0,0.00027397,30]
[377609357,1754453439300,-500.0,0.00027397,30]
[377609358,1754453439309,-500.0,0.00027397,30]
[377609360,1754453439319,-500.0,0.00027397,30]
[377609362,1754453439329,-223.985347,0.00027397,7]
[377609364,1754453439341,-223.985347,0.00027397,7]
[377609366,1754453439351,-151.0,0.00027397,7]
[377609368,1754453439360,-151.0,0.00027397,7]
[377609370,1754453439370,-500.0,0.00027397,2]
[377609372,1754453439379,-151.0,0.00027397,7]
[377609375,1754453439389,-500.0,0.00027397,7]
[377609378,1754453439400,-429.588309,0.00027397,7]
[377609380,1754453439410,-429.588309,0.00027397,7]
[377609384,1754453439420,-151.0,0.00027397,7]
[377609386,1754453439429,-312.16666667,0.00027397,30]
[377609403,1754453439579,-12657.93264304,0.00027397,7]
[377609405,1754453439593,-216.47163855,0.00027397,7]
[377609407,1754453439603,-216.47163855,0.00027397,30]
[377609409,1754453439612,-500.0,0.00027397,30]
[377609411,1754453439622,-500.0,0.00027397,30]
[377609413,1754453439631,-500.0,0.00027397,30]
[377609415,1754453439640,-500.0,0.00027397,30]
[377609417,1754453439650,-522.63336925,0.00027397,30]
[377609419,1754453439659,-514.64861821,0.00027397,30]
[377609421,1754453439669,-160.0,0.00027397,7]
[377609423,1754453439678,-160.0,0.00027397,30]
[377609425,1754453439688,-620.08,0.00027397,30]
[377609427,1754453439697,-620.08,0.00027397,30]
[377609429,1754453439706,-620.08,0.00027397,30]
[377609431,1754453439715,-620.08,0.00027397,30]
[377609433,1754453439724,-620.08,0.00027397,30]
[377609435,1754453439734,-620.08,0.00027397,30]
[377609437,1754453439743,-620.08,0.00027397,30]
[377609439,1754453439752,-620.08,0.00027397,30]
[377609441,1754453439762,-620.08,0.00027397,30]
[377609443,1754453439772,-620.08,0.00027397,30]
[377609445,1754453439781,-620.08,0.00027397,30]
[377609447,1754453439791,-620.08,0.00027397,30]
[377609449,1754453439800,-620.08,0.00027397,30]
[377609450,1754453439809,-620.08,0.00027397,30]
[377609451,1754453439818,-527.46908335,0.00027397,30]
[377609452,1754453439826,-461.26544088,0.00027397,7]
[377609453,1754453439837,-461.26544088,0.00027397,30]
[377609454,1754453439847,-151.0,0.00027397,7]
[377609455,1754453439856,-151.0,0.00027397,7]
[377609456,1754453439865,-151.0,0.00027397,7]
[377609457,1754453439873,-160.0,0.00027397,7]
[377609458,1754453439882,-160.0,0.00027397,30]
[377609459,1754453439891,-151.0,0.00027397,7]
[377609460,1754453439901,-231.78005385,0.00027397,7]
[377609461,1754453439910,-151.0,0.00027397,7]
[377609462,1754453439919,-151.0,0.00027397,7]
[377609463,1754453439928,-500.0,0.00027397,30]
[377609465,1754453439938,-500.0,0.00027397,30]
[377609467,1754453439947,-500.0,0.00027397,30]
[377609469,1754453439956,-500.0,0.00027397,30]
[377609470,1754453439965,-500.0,0.00027397,30]
[377609471,1754453439974,-500.0,0.00027397,30]
[377609472,1754453439983,-500.0,0.00027397,30]
[377609473,1754453439992,-500.0,0.00027397,30]
[377609474,1754453440002,-500.0,0.00027397,30]
[377609475,1754453440012,-500.0,0.00027397,30]
[377609476,1754453440021,-500.0,0.00027397,30]
[377609477,1754453440031,-500.0,0.00027397,30]
[377609478,1754453440040,-500.0,0.00027397,30]
[377609479,1754453440049,-500.0,0.00027397,30]
[377609480,1754453440058,-500.0,0.00027397,30]
[377609481,1754453440067,-554.84074174,0.00027397,30]
[377609482,1754453440076,-151.0,0.00027397,7]
[377609483,1754453440087,-210.235433,0.00027397,7]
[377609484,1754453440096,-842.45170444,0.00027397,7]
[377609485,1754453440106,-842.45170444,0.00027397,30]
[377609486,1754453440115,-501.18495861,0.00027397,30]
[377609487,1754453440124,-151.0,0.00027397,7]
[377609488,1754453440133,-151.0,0.000274,7]
[377609489,1754453440142,-173.359993,0.000274,7]
[377609490,1754453440151,-151.0,0.000274,7]
[377609491,1754453440161,-151.0,0.000274,7]
[377609492,1754453440170,-151.0,0.000274,7]
[377609493,1754453440179,-280.023117,0.000274,7]
[377609494,1754453440188,-151.0,0.000274,7]
[377609495,1754453440198,-151.0,0.000274,7]
[377609496,1754453440207,-151.0,0.000274,7]
[377609497,1754453440216,-644.0,0.000274,2]
[377609498,1754453440226,-151.0,0.000274,7]
[377609499,1754453440235,-151.0,0.000274,7]
[377609500,1754453440244,-151.0,0.000274,7]
[377609501,1754453440257,-150.0,0.00027428,2]
[377609502,1754453440266,-460.04607915,0.00027452,2]
[377609503,1754453440277,-500.75836931,0.00027473,5]
[377609504,1754453440286,-504.52931059,0.00027473,5]
[377609505,1754453440296,-150.0,0.00027473,5]
[377609506,1754453440305,-500.0,0.00027473,5]
[377609507,1754453440315,-500.0,0.00027473,5]
[377609508,1754453440324,-393.96397647,0.00027473,5]
[377609509,1754453440335,-504.84484149,0.00027473,5]
[377609510,1754453440345,-500.0,0.00027473,5]
[377609511,1754453440354,-502.27358269,0.00027473,5]
[377609512,1754453440363,-501.87617131,0.00027473,5]
[377609513,1754453440372,-500.0,0.00027473,5]
[377609514,1754453440381,-620.08,0.00027489,30]
[377609515,1754453440390,-808.61365668,0.0002749,2]
[377609516,1754453440399,-620.08,0.00027499,30]
[377609517,1754453440408,-620.08,0.00027499,30]
[377609518,1754453440417,-620.08,0.00027499,30]
[377609519,1754453440426,-620.08,0.00027499,30]
[377609520,1754453440435,-45128.97885932,0.000275,2]
[377609521,1754453440444,-151.0,0.000275,7]
[377609522,1754453440453,-151.0,0.000275,7]
[377609523,1754453440462,-151.0,0.000275,7]
[377609524,1754453440472,-479.776248,0.000275,7]
[377609525,1754453440481,-479.776248,0.000275,7]
[377609526,1754453440490,-151.0,0.000275,7]
[377609527,1754453440499,-307.592208,0.000275,7]
[377609528,1754453440509,-151.0,0.000275,7]
[377609529,1754453440518,-151.0,0.000275,7]
[377609530,1754453440527,-307.592208,0.000275,7]
[377609531,1754453440537,-151.0,0.000275,7]
[377609532,1754453440546,-1619.121779,0.000275,7]
[377609533,1754453440555,-151.0,0.000275,7]
[377609534,1754453440564,-151.0,0.000275,7]
[377609535,1754453440574,-151.0,0.000275,7]
[377609536,1754453440584,-154.604906,0.000275,7]
[377609537,1754453440593,-151.0,0.000275,7]
[377609538,1754453440602,-189.43151,0.000275,7]
[377609539,1754453440611,-189.43151,0.000275,7]
[377609540,1754453440620,-151.0,0.000275,7]
[377609541,1754453440630,-151.0,0.000275,7]
[377609542,1754453440639,-551.324436,0.000275,7]
[377609543,1754453440648,-551.324436,0.000275,7]
[377609544,1754453440657,-223.985347,0.000275,7]
[377609545,1754453440666,-223.985347,0.000275,7]
[377609546,1754453440675,-151.0,0.000275,7]
[377609547,1754453440685,-151.0,0.000275,7]
[377609548,1754453440694,-151.0,0.000275,7]
[377609549,1754453440703,-151.0,0.000275,7]
[377609550,1754453440713,-151.0,0.000275,7]
[377609551,1754453440722,-429.588309,0.000275,7]
[377609552,1754453440732,-429.588309,0.000275,7]
[377609553,1754453440743,-152.668793,0.000275,7]
[377609554,1754453440752,-151.0,0.000275,7]
[377609555,1754453440761,-151.0,0.000275,7]
[377609556,1754453440771,-151.0,0.000275,7]
[377609557,1754453440780,-21420.6083566,0.000275,7]
[377609558,1754453440789,-151.0,0.000275,7]
[377609559,1754453440798,-160.0,0.000275,7]
[377609560,1754453440808,-151.0,0.000275,7]
[377609561,1754453440817,-181.977814,0.000275,7]
[377609562,1754453440826,-151.0,0.000275,7]
[377609563,1754453440836,-151.0,0.000275,7]
[377609564,1754453440845,-260.0,0.00027508,2]
[377609565,1754453440854,-151.0,0.00027549,2]
[377609566,1754453440863,-500.0,0.00027549,2]
[377609567,1754453440873,-500.0,0.00027549,2]
[377609568,1754453440883,-500.0,0.00027549,2]
[377609569,1754453440892,-500.0,0.00027549,2]
[377609570,1754453440901,-500.0,0.00027549,2]
[377609571,1754453440910,-500.0,0.00027549,2]
[377609572,1754453440919,-500.0,0.00027549,2]
[377609573,1754453440928,-376.06662564,0.00027549,2]
[377609574,1754453440939,-159.52633054,0.00027549,2]
[377609575,1754453440948,-250.0,0.00027549,2]
[377609576,1754453440958,-250.0,0.00027549,2]
[377609577,1754453440967,-250.0,0.00027549,2]
[377609578,1754453440977,-250.0,0.00027549,2]
[377609579,1754453440987,-250.0,0.00027549,2]
[377609580,1754453440996,-250.0,0.00027549,2]
[377609581,1754453441006,-250.0,0.00027549,2]
[377609582,1754453441015,-250.0,0.00027549,2]
[377609583,1754453441025,-200.0,0.00027568,15]
[377609584,1754453441035,-300.0,0.00027568,15]
[377609585,1754453441044,-151.0,0.00027572,7]
[377609586,1754453441054,-151.0,0.00027572,7]
[377609587,1754453441063,-151.0,0.00027572,7]
[377609588,1754453441073,-307.592208,0.00027572,7]
[377609589,1754453441084,-152.831059,0.00027572,7]
[377609590,1754453441093,-151.0,0.00027572,7]
[377609591,1754453441103,-307.592208,0.00027572,7]
[377609592,1754453441112,-1619.121779,0.00027572,7]
[377609593,1754453441121,-1619.121779,0.00027572,7]
[377609594,1754453441130,-151.0,0.00027572,7]
[377609595,1754453441140,-551.324436,0.00027572,7]
[377609598,1754453441150,-551.324436,0.00027572,7]
[377609599,1754453441159,-151.0,0.00027574,7]
[377609601,1754453441168,-151.0,0.00027574,7]
[377609603,1754453441178,-151.0,0.00027574,7]
[377609605,1754453441187,-189.43151,0.00027574,7]
[377609607,1754453441197,-189.43151,0.00027574,7]
[377609609,1754453441206,-151.0,0.00027574,7]
[377609611,1754453441215,-151.0,0.00027574,7]
[377609613,1754453441225,-151.0,0.00027574,7]
[377609614,1754453441234,-1000.0,0.00027621,5]
[377609615,1754453441244,-160.0,0.00027659,5]
[377609616,1754453441257,-479.776248,0.00027671,7]
[377609617,1754453441266,-479.776248,0.00027671,7]
[377609618,1754453441275,-500.0,0.00027671,2]
[377609619,1754453441285,-500.0,0.00027671,7]
[377609620,1754453441294,-620.08,0.00027776,30]
[377609621,1754453441305,-620.08,0.00027776,30]
[377609622,1754453441315,-620.08,0.00027776,30]
[377609623,1754453441326,-620.08,0.00027776,30]
[377609624,1754453441337,-620.10486702,0.00027776,30]
[377609625,1754453441347,-160.0,0.00027777,3]
[377609626,1754453441356,-160.0,0.00027777,3]
[377609627,1754453441365,-12657.93264304,0.00027777,3]
[377609628,1754453441375,-216.47163855,0.00027777,3]
[377609629,1754453441384,-461.26544088,0.00027777,3]
[377609630,1754453441393,-160.0,0.00027777,3]
[377609631,1754453441403,-231.78005385,0.00027777,3]
[377609632,1754453441413,-160.0,0.00027777,3]
[377609633,1754453441423,-842.45170444,0.00027777,3]
[377609634,1754453441432,-151.0,0.00027777,7]
[377609635,1754453441442,-151.0,0.00027777,7]
[377609636,1754453441451,-151.0,0.00027777,7]
[377609637,1754453441460,-223.985347,0.00027777,7]
[377609638,1754453441470,-223.985347,0.00027777,7]
[377609639,1754453441479,-151.0,0.00027777,7]
[377609641,1754453441488,-151.0,0.00027777,7]
[377609643,1754453441497,-151.0,0.00027777,7]
[377609645,1754453441506,-429.588309,0.00027777,7]
[377609647,1754453441515,-429.588309,0.00027777,7]
[377609649,1754453441525,-151.0,0.00027777,7]
[377609651,1754453441534,-151.0,0.00027777,7]
[377609653,1754453441544,-151.0,0.00027777,7]
[377609655,1754453441553,-151.0,0.00027777,7]
[377609657,1754453441562,-151.0,0.00027777,7]
[377609659,1754453441572,-151.0,0.00027777,7]
[377609661,1754453441582,-151.0,0.00027777,7]
[377609663,1754453441592,-1000.0,0.000278,10]
[377609665,1754453441602,-678.23066169,0.00027821,5]
[377609667,1754453441611,-1000.0,0.00027821,5]
[377609669,1754453441620,-1000.0,0.00027821,2]
[377609671,1754453441630,-413.16299039,0.00027821,5]
[377609673,1754453441639,-1000.0,0.00027821,5]
[377609675,1754453441649,-1000.0,0.00027821,5]
[377609677,1754453441658,-654.59097771,0.00027821,5]
[377609679,1754453441669,-1000.0,0.00027821,5]
[377609681,1754453441678,-1000.0,0.00027821,2]
[377609683,1754453441688,-1000.0,0.00027821,5]
[377609685,1754453441697,-435.7221146,0.00027821,5]
[377609687,1754453441707,-404.30682834,0.00027835,2]
[377609689,1754453441716,-160.0,0.00027841,2]
[377609691,1754453441726,-160.0,0.00027841,2]
[377609693,1754453441736,-215.26769691,0.00027841,2]
[377609695,1754453441746,-160.0,0.00027845,2]
[377609697,1754453441755,-231.78005385,0.00027845,2]
[377609699,1754453441766,-160.0,0.00027845,2]
[377609701,1754453441779,-160.0,0.00027845,2]
[377609703,1754453441790,-160.0,0.00027845,2]
[377609705,1754453441800,-461.26544088,0.00027845,2]
[377609707,1754453441811,-160.0,0.00027845,2]
[377609709,1754453441823,-160.0,0.00027845,2]
[377609711,1754453441833,-160.0,0.00027845,2]
[377609713,1754453441842,-842.45170444,0.00027845,2]
[377609715,1754453441851,-160.0,0.00027845,2]
[377609717,1754453441860,-12657.93264304,0.00027845,2]
[377609718,1754453441869,-216.47163855,0.00027845,2]
[377609721,1754453441879,-151.0,0.00027863,7]
[377609722,1754453441888,-151.0,0.00027863,7]
[377609724,1754453441897,-151.0,0.00027863,7]
[377609726,1754453441906,-479.776248,0.00027863,7]
[377609727,1754453441915,-151.0,0.00027863,7]
[377609729,1754453441924,-307.592208,0.00027863,7]
[377609730,1754453441934,-479.776248,0.00027863,7]
[377609731,1754453441943,-291.664798,0.00027863,7]
[377609732,1754453441953,-307.592208,0.00027863,7]
[377609733,1754453441962,-151.0,0.00027863,7]
[377609734,1754453441972,-1619.121779,0.00027863,7]
[377609735,1754453441981,-1619.121779,0.00027863,7]
[377609736,1754453441990,-151.0,0.00027863,7]
[377609737,1754453441999,-151.0,0.00027863,7]
[377609738,1754453442009,-189.43151,0.00027863,7]
[377609739,1754453442019,-189.43151,0.00027863,7]
[377609740,1754453442028,-151.0,0.00027863,7]
[377609741,1754453442037,-151.0,0.00027863,7]
[377609742,1754453442047,-551.324436,0.00027863,7]
[377609743,1754453442056,-551.324436,0.00027863,7]
[377609744,1754453442066,-151.0,0.00027863,7]
[377609745,1754453442076,-151.0,0.00027863,7]
[377609746,1754453442086,-151.0,0.00027863,7]
[377609747,1754453442095,-429.588309,0.00027863,7]
[377609748,1754453442104,-429.588309,0.00027863,7]
[377609749,1754453442114,-151.0,0.00027863,7]
[377609750,1754453442124,-151.0,0.00027863,7]
[377609751,1754453442133,-151.0,0.00027863,7]
[377609752,1754453442143,-151.0,0.00027863,7]
[377609753,1754453442152,-151.0,0.00027863,7]
[377609754,1754453442161,-151.0,0.00027863,7]
[377609755,1754453442170,-151.0,0.00027863,7]
[377609756,1754453442179,-500.0,0.00027869,30]
[377609757,1754453442299,-500.0,0.00027945,2]
[377609758,1754453442308,-500.0,0.00027945,7]
[377609759,1754453442318,-404.30682834,0.0002799,2]
[377609760,1754453442328,-500.0,0.00027999,30]
[377609761,1754453442339,-552.48048394,0.00028,2]
[377609762,1754453442349,-25000.0,0.00028,2]
[377609763,1754453442358,-151.0,0.00028,7]
[377609764,1754453442368,-151.0,0.00028,7]
[377609765,1754453442377,-223.985347,0.00028,7]
[377609766,1754453442386,-223.985347,0.00028,7]
[377609767,1754453442395,-151.0,0.00028,7]
[377609768,1754453442405,-151.0,0.00028,7]
[377609769,1754453442414,-500.0,0.00028014,30]
[377609770,1754453442424,-1600.0,0.00028015,7]